fUSD/lending_fUSD_20260128
["ID","MTS","AMOUNT","RATE_DAILY","PERIOD"]
[403857620,1769604643162,-5000.0,0.00021918,2]
[403857621,1769604643172,-151.0,0.00021918,2]
[403857622,1769604643183,-165.0,0.00021918,2]
[403857623,1769604643193,-165.0,0.00021918,2]
[403857624,1769604643203,-165.0,0.00021918,2]
[403857625,1769604643213,-165.0,0.00021918,2]
[403857626,1769604643223,-155.0,0.00021918,2]
[403857627,1769604643234,-165.0,0.00021918,2]
[403857628,1769604643244,-155.0,0.00021918,2]
[403857629,1769604643254,-165.0,0.00021918,2]
[403857630,1769604643264,-155.0,0.00021918,2]
[403857631,1769604643277,-165.0,0.00021918,2]
[403857632,1769604643287,-155.0,0.00021918,2]
[403857633,1769604643296,-155.0,0.00021918,2]
[403857634,1769604643306,-155.0,0.00021918,2]
[403857636,1769604643316,-155.0,0.00021918,2]
[403857638,1769604643326,-165.0,0.00021918,2]
[403857639,1769604643336,-155.0,0.00021918,2]
[403857642,1769604643346,-168.35235479,0.00021918,2]
[403857643,1769604643356,-155.0,0.00021918,2]
[403857644,1769604643367,-155.0,0.00021918,2]
[403857645,1769604643377,-219.15698301,0.00021918,2]
[403857646,1769604643387,-800.0,0.00021918,4]
[403857647,1769604643397,-800.0,0.00021918,4]
[403857648,1769604643407,-800.0,0.00021918,4]
[403857649,1769604643417,-800.0,0.00021918,4]
[403857650,1769604643428,-800.0,0.00021918,4]
[403857651,1769604643438,-800.0,0.00021918,4]
[403857652,1769604643448,-800.0,0.00021918,4]
[403857653,1769604643458,-800.0,0.00021918,4]
[403857654,1769604643473,-150.0,0.00021918,2]
[403857655,1769604643483,-500.0,0.00021918,2]
[403857656,1769604643494,-268.35638864,0.00021973,2]
[403857657,1769604643504,-500.0,0.00021973,2]
[403857658,1769604643515,-500.7746919,0.00021973,2]
[403857659,1769604643525,-500.0,0.00021973,2]
[403857660,1769604643535,-500.93909876,0.00021973,2]
[403857661,1769604643545,-500.0,0.00021973,2]
[403857662,1769604643554,-161.40469099,0.00021973,2]
[403857663,1769604643564,-500.0,0.00021973,2]
[403857664,1769604643574,-500.0,0.00021973,2]
[403857665,1769604643583,-500.0,0.00021973,2]
[403857666,1769604643593,-208.25001781,0.00021973,2]
[403857667,1769604643602,-250.07737695,0.00021973,2]
[403857668,1769604643613,-500.0,0.00021973,2]
[403857669,1769604643623,-500.0,0.00021973,2]
[403857670,1769604643632,-500.46570167,0.00021973,2]
[403857671,1769604643642,-500.97270712,0.00021973,2]
[403857672,1769604643651,-500.0,0.00021973,2]
[403857673,1769604643665,-500.79595583,0.00021973,2]
[403857674,1769604643675,-500.0,0.00021973,2]
[403857675,1769604643685,-333.38297548,0.00021973,2]
[403857676,1769604643695,-160.05102853,0.00021973,2]
[403857677,1769604643705,-500.48796641,0.00021973,2]
[403857678,1769604643714,-500.36677544,0.00021973,2]
[403857679,1769604643725,-500.12495376,0.00021973,2]
[403857680,1769604643735,-340.18884968,0.00021973,2]
[403857681,1769604643745,-500.63567767,0.00021973,2]
[403857682,1769604643758,-500.0,0.00021973,2]
[403857683,1769604643768,-500.0,0.00021973,2]
[403857684,1769604643777,-500.0,0.00021973,2]
[403857685,1769604643788,-500.29215456,0.00021973,2]
[403857686,1769604643800,-500.0,0.00021973,2]
[403857687,1769604643812,-500.30198217,0.00021973,2]
[403857688,1769604643822,-500.0,0.00021973,2]
[403857689,1769604643832,-500.56756303,0.00021973,2]
[403857690,1769604643844,-500.0,0.00021973,2]
[403857691,1769604643854,-501.21016651,0.00021973,2]
[403857692,1769604643868,-161.84465629,0.00021973,2]
[403857693,1769604643878,-161.06844262,0.00021973,2]
[403857694,1769604643888,-158.16850071,0.00021973,2]
[403857695,1769604643899,-500.0,0.00021973,2]
[403857696,1769604643911,-159.95483821,0.00021973,2]
[403857697,1769604643921,-162.0162466,0.00021973,2]
[403857698,1769604643931,-512.07559774,0.00021973,2]
[403857699,1769604643943,-164.6729444,0.00021973,2]
[403857700,1769604643954,-500.0,0.00021973,2]
[403857701,1769604643964,-500.0,0.00021973,2]
[403857702,1769604643974,-169.6207379,0.00021973,2]
[403857703,1769604643985,-208.70238568,0.00021973,2]
[403857704,1769604643996,-500.0,0.00021973,2]
[403857705,1769604644009,-500.0,0.00021973,2]
[403857706,1769604644019,-500.19574108,0.00021973,2]
[403857707,1769604644028,-165.82745165,0.00021973,2]
[403857708,1769604644040,-500.0,0.00021973,2]
[403857709,1769604644050,-500.0,0.00021973,2]
[403857710,1769604644062,-500.0,0.00021973,2]
[403857711,1769604644073,-500.64953164,0.00021973,2]
[403857712,1769604644084,-500.0,0.00021973,2]
[403857713,1769604644094,-309.0940969,0.00021973,2]
[403857714,1769604644104,-500.0,0.00021973,2]
[403857715,1769604644115,-500.0,0.00021973,2]
[403857716,1769604644125,-500.0,0.00021973,2]
[403857717,1769604644137,-500.0,0.00021973,2]
[403857718,1769604644148,-500.0,0.00021973,2]
[403857719,1769604644158,-501.32593158,0.00021973,2]
[403857720,1769604644168,-160.74991688,0.00021973,2]
[403857721,1769604644179,-162.57897641,0.00021973,2]
[403857722,1769604644190,-471.25294658,0.00021973,2]
[403857723,1769604644202,-284.26160818,0.00021973,2]
[403857724,1769604644212,-509.15554245,0.00021973,2]
[403857725,1769604644223,-500.0,0.00021973,2]
[403857726,1769604644234,-500.13090625,0.00021973,2]
[403857727,1769604644244,-150.43514625,0.00021973,2]
[403857728,1769604644257,-500.0,0.00021973,2]
[403857729,1769604644267,-306.48,0.00022,7]
[403857730,1769604644279,-70422.45844552,0.00022,4]
[403857731,1769604644291,-500.0,0.00022028,2]
[403857732,1769604644304,-500.0,0.00022082,2]
[403857733,1769604644318,-606.35249454,0.00022102,2]
[403857734,1769604644328,-500.0,0.00022137,2]
[403857735,1769604644340,-500.0,0.00022192,2]
[403857738,1769604644351,-500.0,0.00022247,2]
[403857739,1769604644361,-500.0,0.00022302,2]
[403857741,1769604644371,-500.0,0.00022356,2]
[403857742,1769604644381,-500.0,0.00022411,2]
[403857743,1769604644390,-150.0011484,0.00022424,17]
[403857744,1769604644400,-500.0,0.00022466,2]
[403857745,1769604644410,-173.98525455,0.000225,7]
[403857746,1769604644419,-1000.0,0.00022521,2]
[403857747,1769604644430,-1000.0,0.00022521,2]
[403857748,1769604644449,-1000.0,0.00022521,2]
[403857749,1769604644461,-1002.72215136,0.00022521,2]
[403857750,1769604644471,-1000.0,0.00022521,2]
[403857751,1769604644480,-1000.0,0.00022521,2]
[403857752,1769604644490,-500.89949552,0.00022521,2]
[403857753,1769604644500,-501.16065005,0.00022521,2]
[403857754,1769604644509,-1000.0,0.00022521,2]
[403857755,1769604644520,-502.70174181,0.00022521,2]
[403857756,1769604644529,-501.77453668,0.00022521,2]
[403857757,1769604644539,-501.02318751,0.00022521,2]
[403857758,1769604644548,-1001.69009252,0.00022521,2]
[403857759,1769604644558,-1000.0,0.00022521,2]
[403857760,1769604644568,-1000.0,0.00022521,2]
[403857761,1769604644577,-1000.0,0.00022521,2]
[403857762,1769604644587,-502.34645395,0.00022521,2]
[403857763,1769604644596,-1000.0,0.00022521,2]
[403857764,1769604644612,-1000.0,0.00022521,2]
[403857765,1769604644622,-501.32277439,0.00022521,2]
[403857766,1769604644631,-1000.0,0.00022521,2]
[403857795,1769604645201,-1000.0,0.00022521,2]
[403857797,1769604645211,-1000.0,0.00022521,2]
[403857798,1769604645220,-1006.47973873,0.00022521,2]
[403857799,1769604645230,-1000.0,0.00022521,2]
[403857800,1769604645240,-1000.0,0.00022521,2]
[403857801,1769604645250,-1000.0,0.00022521,2]
[403857802,1769604645261,-500.0,0.00022521,2]
[403857803,1769604645271,-4612.24,0.00022586,2]
[403857804,1769604645280,-155.0,0.00023012,2]
[403857805,1769604645290,-176.67,0.00023017,2]
[403857806,1769604645300,-1043.91129536,0.00023068,2]
[403857807,1769604645309,-1038.06736554,0.00023068,2]
[403857808,1769604645319,-1500.0,0.00023068,2]
[403857809,1769604645330,-1500.0,0.00023068,2]
[403857810,1769604645340,-1017.33172074,0.00023068,2]
[403857811,1769604645350,-1003.52399102,0.00023068,2]
[403857812,1769604645360,-656.61150819,0.00023068,2]
[403857813,1769604645370,-1500.0,0.00023068,2]
[403857814,1769604645381,-1500.0,0.00023068,2]
[403857815,1769604645392,-502.64656649,0.00023068,2]
[403857816,1769604645402,-406.59218179,0.00023068,2]
[403857817,1769604645411,-1500.0,0.00023068,2]
[403857818,1769604645420,-1500.0,0.00023068,2]
[403857819,1769604645430,-1500.0,0.00023068,2]
[403857820,1769604645440,-1500.0,0.00023068,2]
[403857821,1769604645450,-1500.0,0.00023068,2]
[403857822,1769604645460,-1500.0,0.00023068,2]
[403857823,1769604645469,-209.28929397,0.00023079,2]
[403857824,1769604645478,-158.72551505,0.00023159,2]
[403857825,1769604645487,-506.0,0.00023167,6]
[403857826,1769604645496,-166.84,0.00023243,2]
[403857827,1769604645505,-208.57,0.0002345,2]
[403857828,1769604645515,-176.67,0.0002361,2]
[403857829,1769604645525,-2000.0,0.00023616,2]
[403857830,1769604645534,-2000.0,0.00023616,2]
[403857831,1769604645544,-2000.0,0.00023616,2]
[403857832,1769604645553,-301.03665033,0.00023616,2]
[403857833,1769604645562,-2005.87477208,0.00023616,2]
[403857834,1769604645573,-2000.0,0.00023616,2]
[403857835,1769604645582,-1481.92469826,0.00023616,2]
[403857836,1769604645591,-681.38898729,0.00023616,2]
[403857837,1769604645600,-2000.0,0.00023616,2]
[403857838,1769604645610,-1209.41969905,0.00023616,2]
[403857839,1769604645620,-1000.0,0.00023788,2]
[403857840,1769604645629,-150.0011484,0.00023834,22]
[403857841,1769604645638,-532.66518825,0.00024149,2]
[403857842,1769604645648,-1000.0,0.00024164,2]
[403857843,1769604645658,-1500.0,0.00024164,2]
[403857844,1769604645667,-1000.0,0.00024164,2]
[403857845,1769604645677,-2001.23123216,0.00024164,2]
[403857846,1769604645687,-1500.0,0.00024164,2]
[403857847,1769604645696,-176.67,0.00024203,2]
[403857848,1769604645705,-4840.7,0.00024249,2]
[403857849,1769604645714,-6520.91910662,0.000245,2]
[403857850,1769604645724,-1253.53,0.00024615,2]
[403857851,1769604645734,-151.0,0.0002463,2]
[403857852,1769604645743,-156.587,0.0002463,2]
[403857853,1769604645754,-162.380719,0.0002463,2]
[403857854,1769604645765,-157.05661781,0.0002463,2]
[403857855,1769604645778,-174.61919141,0.0002463,2]
[403857856,1769604645788,-578.20924308,0.0002463,2]
[403857857,1769604645799,-2000.0,0.0002463,2]
[403857858,1769604645809,-2000.0,0.0002463,2]
[403857859,1769604645818,-2000.0,0.0002463,2]
[403857860,1769604645828,-2000.0,0.0002463,2]
[403857861,1769604645837,-2000.0,0.0002463,2]
[403857862,1769604645847,-2000.0,0.0002463,2]
[403857863,1769604645856,-2000.0,0.0002463,2]
[403857864,1769604645865,-500.0,0.0002463,2]
[403857865,1769604645876,-2000.0,0.0002463,2]
[403857866,1769604645885,-500.0,0.0002463,2]
[403857867,1769604645894,-2000.0,0.0002463,2]
[403857868,1769604645904,-500.0,0.0002463,2]
[403857869,1769604645914,-2000.0,0.0002463,2]
[403857870,1769604645924,-500.0,0.0002463,2]
[403857871,1769604645933,-2000.0,0.0002463,2]
[403857872,1769604645943,-500.0,0.0002463,2]
[403857873,1769604645953,-2000.0,0.0002463,2]
[403857874,1769604645963,-500.0,0.0002463,2]
[403857875,1769604645972,-2000.0,0.0002463,2]
[403857876,1769604645981,-500.0,0.0002463,2]
[403857877,1769604645991,-2000.0,0.0002463,2]
[403857878,1769604646000,-3000.0,0.0002463,2]
[403857879,1769604646009,-500.0,0.0002463,2]
[403857880,1769604646019,-2000.0,0.0002463,2]
[403857881,1769604646028,-3000.0,0.0002463,2]
[403857882,1769604646038,-2000.0,0.0002463,2]
[403857883,1769604646047,-500.0,0.0002463,2]
[403857884,1769604646056,-3000.0,0.0002463,2]
[403857886,1769604646066,-721.12765535,0.0002463,2]
[403857888,1769604646076,-2000.0,0.0002463,2]
[403857889,1769604646085,-3000.0,0.0002463,2]
[403857890,1769604646096,-500.0,0.0002463,2]
[403857891,1769604646106,-2000.0,0.0002463,2]
[403857892,1769604646119,-3000.0,0.0002463,2]
[403857893,1769604646131,-500.0,0.0002463,2]
[403857894,1769604646140,-2000.0,0.0002463,2]
[403857895,1769604646150,-3000.0,0.0002463,2]
[403857896,1769604646160,-2000.0,0.0002463,2]
[403857897,1769604646169,-3000.0,0.0002463,2]
[403857898,1769604646180,-2000.0,0.0002463,2]
[403857899,1769604646190,-3000.0,0.0002463,2]
[403857900,1769604646200,-2000.0,0.0002463,2]
[403857901,1769604646210,-3000.0,0.0002463,2]
[403857902,1769604646219,-3000.0,0.0002463,2]
[403857903,1769604646229,-500.0,0.0002463,2]
[403857904,1769604646239,-3000.0,0.0002463,2]
[403857905,1769604646248,-500.0,0.0002463,2]
[403857906,1769604646257,-854.2589148,0.0002463,2]
[403857907,1769604646267,-500.0,0.0002463,2]
[403857908,1769604646276,-500.0,0.0002463,2]
[403857909,1769604646286,-500.0,0.0002463,2]
[403857910,1769604646297,-500.0,0.0002463,2]
[403857911,1769604646306,-500.0,0.0002463,2]
[403857912,1769604646316,-209.40437684,0.0002463,2]
[403857913,1769604646325,-500.0,0.0002463,2]
[403857914,1769604646334,-500.0,0.0002463,2]
[403857915,1769604646343,-500.0,0.0002463,2]
[403857916,1769604646353,-500.0,0.0002463,2]
[403857917,1769604646362,-500.0,0.0002463,2]
[403857918,1769604646372,-500.0,0.0002463,2]
[403857919,1769604646381,-500.0,0.0002463,2]
[403857920,1769604646391,-500.0,0.0002463,2]
[403857921,1769604646400,-500.0,0.0002463,2]
[403857922,1769604646409,-500.0,0.0002463,2]
[403857923,1769604646419,-500.0,0.0002463,2]
[403857924,1769604646428,-500.0,0.0002463,2]
[403857925,1769604646437,-500.0,0.0002463,2]
[403857926,1769604646446,-500.0,0.0002463,2]
[403857927,1769604646456,-500.0,0.0002463,2]
[403857928,1769604646466,-500.0,0.0002463,2]
[403857929,1769604646475,-500.0,0.0002463,2]
[403857930,1769604646485,-151.0,0.0002463,2]
[403857931,1769604646494,-500.0,0.0002463,2]
[403857932,1769604646503,-500.0,0.0002463,2]
[403857933,1769604646513,-500.0,0.0002463,2]
[403857934,1769604646522,-500.0,0.0002463,2]
[403857935,1769604646531,-500.0,0.0002463,2]
[403857936,1769604646541,-500.0,0.0002463,2]
[403857937,1769604646551,-322.6107,0.0002463,2]
[403857938,1769604646561,-500.0,0.0002463,2]
[403857939,1769604646570,-500.0,0.0002463,2]
[403857940,1769604646580,-500.0,0.0002463,2]
[403857941,1769604646589,-228.64202205,0.0002463,2]
[403857942,1769604646601,-500.0,0.0002463,2]
[403857943,1769604646611,-500.0,0.0002463,2]
[403857944,1769604646620,-500.0,0.0002463,2]
[403857945,1769604646630,-500.0,0.0002463,2]
[403857946,1769604646641,-500.0,0.0002463,2]
[403857947,1769604646650,-500.0,0.0002463,2]
[403857948,1769604646660,-2000.0,0.0002463,2]
[403857949,1769604646670,-500.0,0.0002463,2]
[403857950,1769604646680,-2000.0,0.0002463,2]
[403857951,1769604646691,-500.0,0.0002463,2]
[403857952,1769604646702,-2000.0,0.0002463,2]
[403857953,1769604646712,-500.0,0.0002463,2]
[403857954,1769604646722,-2000.0,0.0002463,2]
[403857955,1769604646731,-500.0,0.0002463,2]
[403857956,1769604646740,-2000.0,0.0002463,2]
[403857957,1769604646750,-500.0,0.0002463,2]
[403857959,1769604646760,-1033.0401575,0.0002463,2]
[403857960,1769604646775,-250.0,0.0002463,2]
[403857961,1769604646785,-250.0,0.0002463,2]
[403857962,1769604646794,-250.0,0.0002463,2]
[403857963,1769604646803,-250.0,0.0002463,2]
[403857964,1769604646814,-250.0,0.0002463,2]
[403857965,1769604646823,-250.0,0.0002463,2]
[403857966,1769604646832,-250.0,0.0002463,2]
[403857967,1769604646843,-250.0,0.0002463,2]
[403857968,1769604646854,-364.97101815,0.0002463,2]
[403857969,1769604646863,-250.0,0.0002463,2]
[403857970,1769604646873,-250.0,0.0002463,2]
[403857971,1769604646884,-250.0,0.0002463,2]
[403857972,1769604646894,-250.0,0.0002463,2]
[403857973,1769604646903,-329.52737061,0.0002463,2]
[403857974,1769604646912,-151.0,0.0002463,2]
[403857975,1769604646922,-319.06740153,0.0002463,2]
[403857976,1769604646931,-209.40437684,0.0002463,2]
[403857977,1769604646941,-1000.0,0.00024658,2]
[403857978,1769604646951,-152.356874,0.00024658,2]
[403857979,1769604646962,-151.0,0.00024658,2]
[403857980,1769604646972,-217.15233878,0.00024685,2]
[403857981,1769604646983,-225.18697532,0.0002474,2]
[403857982,1769604646992,-233.51889341,0.00024795,2]
[403857983,1769604647001,-10306.1413239,0.000248,3]
[403857984,1769604647011,-242.15909246,0.0002485,2]
[403857985,1769604647020,-251.11897888,0.00024905,2]
[403857986,1769604647029,-260.4103811,0.0002496,2]
[403857987,1769604647039,-270.0455652,0.00025015,2]
[403857988,1769604647048,-280.03725112,0.0002507,2]
[403857989,1769604647058,-290.39862941,0.00025125,2]
[403857990,1769604647067,-181.08010149,0.00025178,2]
[403857991,1769604647078,-885.86649465,0.00025178,2]
[403857992,1769604647087,-151.0,0.00025178,2]
[403857993,1769604647097,-151.0,0.00025178,2]
[403857994,1769604647106,-209.40437684,0.00025178,2]
[403857995,1769604647116,-301.1433787,0.0002518,2]
[403857996,1769604647126,-150.0011484,0.00025244,26]
[403857997,1769604647136,-306.48,0.000253,7]
[403857998,1769604647146,-24467.0,0.000256,2]
[403857999,1769604647157,-187.78006525,0.00025726,2]
[403858000,1769604647168,-918.64355495,0.00025726,2]
[403858001,1769604647178,-151.0,0.00025726,2]
[403858002,1769604647187,-1000.0,0.00025951,2]
[403858003,1769604647198,-322.6107,0.00025999,2]
[403858004,1769604647209,-33735.46695411,0.00026,10]
[403858005,1769604647219,-5532.0,0.00026,3]
[403858006,1769604647230,-6616.523,0.00026115,2]
[403858007,1769604647239,-5930.0,0.00026115,2]
[403858008,1769604647249,-194.72792766,0.00026274,2]
[403858009,1769604647259,-952.63336648,0.00026274,2]
[403858010,1769604647268,-151.0,0.00026274,2]
[403858011,1769604647277,-8771.0,0.000263,2]
[403858012,1769604647287,-5532.0,0.000263,5]
[403858013,1769604647296,-606.35249454,0.00026303,2]
[403858014,1769604647306,-4840.7,0.00026618,2]
[403858015,1769604647315,-150.0011484,0.00026654,31]
[403858016,1769604647326,-224.77042426,0.00026822,2]
[403858017,1769604647335,-166.84,0.00026922,2]
[403858018,1769604647344,-173.81,0.00027179,2]
[403858019,1769604647354,-150.0,0.00027369,2]
[403858020,1769604647363,-578.20924308,0.00027369,2]
[403858021,1769604647374,-721.12765535,0.00027369,2]
[403858022,1769604647384,-171.93,0.0002737,2]
[403858023,1769604647394,-2000.0,0.00027397,2]
[403858024,1769604647405,-750.0,0.00027397,20]
[403858025,1769604647414,-300.0,0.00027397,2]
[403858026,1769604647424,-7686.46,0.00027641,2]
[403858027,1769604647434,-158.72551505,0.00027791,2]
[403858028,1769604647444,-166.84,0.00027845,2]
[403858029,1769604647454,-150.0011484,0.00028064,35]
[403858030,1769604647464,-173.81,0.00028083,2]
[403858031,1769604647473,-506.0,0.00028333,11]
[403858032,1769604647483,-500.0,0.00028384,2]
[403858033,1769604647494,-2000.0,0.00028767,12]
[403858034,1769604647503,-4840.7,0.00028987,2]
[403858035,1769604647513,-6572.0,0.00029115,2]
[403858036,1769604647523,-5930.0,0.00029115,2]
[403858037,1769604647533,-1040.13,0.000294,14]
[403858038,1769604647542,-150.0011484,0.00029474,39]
[403858039,1769604647637,-155.0,0.00029587,2]
[403858040,1769604647648,-341.63,0.000298,90]
[403858041,1769604647657,-341.63,0.000298,20]
[403858042,1769604647667,-3183.4293973,0.0003,120]
[403858043,1769604647676,-2000.0,0.00030136,22]
[403858044,1769604647685,-200.0,0.00030355,2]
[403858045,1769604647694,-606.35249454,0.00030505,2]
[403858046,1769604647703,-946.03240615,0.00030505,2]
[403858047,1769604647712,-8756.87756568,0.00030505,2]
[403858048,1769604647721,-13233.49658051,0.00030505,2]
[403858049,1769604647730,-321.42159384,0.00030505,2]
[403858050,1769604647739,-1694.0,0.00030812,2]
[403858051,1769604647748,-150.0011484,0.00030884,43]
[403858052,1769604647762,-306.48,0.000309,7]
[403858053,1769604647771,-11382.96689091,0.00031,2]
[403858054,1769604647780,-4840.7,0.00031355,2]
[403858055,1769604647790,-2000.0,0.00031506,32]
[403858056,1769604647799,-2000.0,0.000319,2]
[403858057,1769604647809,-5930.0,0.00032115,2]
[403858058,1769604647818,-151.0,0.00032115,31]
[403858059,1769604647828,-151.0,0.00032115,31]
[403858060,1769604647837,-151.0,0.00032115,31]
[403858061,1769604647846,-151.198748,0.00032115,31]
[403858062,1769604647855,-190.631809,0.00032115,7]
[403858063,1769604647865,-190.631809,0.00032115,7]
[403858064,1769604647874,-190.631809,0.00032115,7]
[403858065,1769604647883,-190.631809,0.00032115,7]
[403858066,1769604647892,-150.0011484,0.00032294,47]
[403858067,1769604647901,-151.0,0.00032668,31]
[403858068,1769604647909,-151.0,0.00032668,31]
[403858069,1769604647918,-257.895,0.00032849,30]
[403858070,1769604647927,-2000.0,0.00032849,120]
[403858071,1769604647937,-2000.0,0.00032876,42]
[403858072,1769604647946,-500.0,0.00032877,7]
[403858073,1769604647955,-500.0,0.00032877,7]
[403858074,1769604647965,-500.0,0.00032877,7]
[403858075,1769604647974,-500.0,0.00032877,7]
[403858076,1769604647983,-500.0,0.00032877,7]
[403858077,1769604647992,-500.0,0.00032877,7]
[403858078,1769604648001,-500.0,0.00032877,7]
[403858079,1769604648010,-288.39921426,0.00032877,7]
[403858080,1769604648019,-500.0,0.00032877,7]
[403858081,1769604648028,-1267.84,0.000329,2]
[403858082,1769604648037,-540.285594,0.00033,8]
[403858083,1769604648046,-506.0,0.000335,16]
[403858084,1769604648054,-377.598,0.00033535,10]
[403858085,1769604648063,-2303.17,0.000337,14]
[403858086,1769604648072,-858.77,0.000337,14]
[403858087,1769604648082,-177.879756,0.000337,31]
[403858088,1769604648091,-177.879756,0.000337,31]
[403858089,1769604648100,-177.879756,0.000337,31]
[403858090,1769604648109,-177.879756,0.000337,31]
[403858091,1769604648119,-243.713436,0.000337,28]
[403858092,1769604648128,-243.713436,0.000337,28]
[403858093,1769604648137,-243.713436,0.000337,28]
[403858094,1769604648147,-243.713436,0.000337,28]
[403858095,1769604648155,-151.0,0.000337,31]
[403858096,1769604648164,-150.00114855,0.00033704,51]
[403858097,1769604648173,-4840.7,0.00033724,5]
[403858098,1769604648181,-152.0,0.00034185,3]
[403858099,1769604648189,-2000.0,0.00034246,57]
[403858100,1769604648200,-257.38136555,0.00034258,10]
[403858101,1769604648210,-606.35249454,0.00034707,2]
[403858102,1769604648219,-1267.84,0.000349,2]
[403858103,1769604648228,-158.9914985,0.00035113,54]
[403858104,1769604648237,-4819.155,0.00035115,2]
[403858105,1769604648246,-2000.0,0.000356,2]
[403858106,1769604648255,-2000.0,0.00035616,67]
[403858107,1769604648264,-151.0,0.00035616,31]
[403858108,1769604648273,-151.0,0.00035616,31]
[403858109,1769604648283,-151.0,0.00035616,31]
[403858110,1769604648291,-238.373094,0.00035616,31]
[403858111,1769604648301,-500.0,0.00035616,7]
[403858112,1769604648310,-500.0,0.00035616,7]
[403858113,1769604648319,-500.0,0.00035616,7]
[403858114,1769604648328,-500.0,0.00035616,7]
[403858115,1769604648336,-500.0,0.00035616,7]
[403858116,1769604648346,-500.0,0.00035616,7]
[403858117,1769604648355,-500.0,0.00035616,7]
[403858118,1769604648364,-500.0,0.00035616,7]
[403858119,1769604648373,-500.0,0.00035616,7]
[403858120,1769604648382,-500.0,0.00035616,7]
[403858121,1769604648391,-500.0,0.00035616,7]
[403858122,1769604648400,-500.0,0.00035616,7]
[403858123,1769604648409,-500.0,0.00035616,7]
[403858124,1769604648417,-500.0,0.00035616,7]
[403858125,1769604648426,-500.0,0.00035616,7]
[403858126,1769604648435,-500.0,0.00035616,7]
[403858127,1769604648444,-500.0,0.00035616,7]
[403858128,1769604648453,-500.0,0.00035616,7]
[403858129,1769604648461,-500.0,0.00035616,7]
[403858130,1769604648471,-500.0,0.00035616,7]
[403858131,1769604648479,-500.0,0.00035616,7]
[403858132,1769604648489,-500.0,0.00035616,7]
[403858133,1769604648498,-500.0,0.00035616,7]
[403858134,1769604648507,-500.0,0.00035616,7]
[403858135,1769604648516,-500.0,0.00035616,7]
[403858136,1769604648525,-500.0,0.00035616,7]
[403858137,1769604648535,-500.0,0.00035616,7]
[403858138,1769604648543,-500.0,0.00035616,7]
[403858139,1769604648553,-500.0,0.00035616,7]
[403858140,1769604648562,-412.24408379,0.00035616,7]
[403858141,1769604648571,-500.0,0.00035616,7]
[403858142,1769604648580,-500.0,0.00035616,7]
[403858143,1769604648589,-375.18484396,0.00035616,7]
[403858144,1769604648598,-500.0,0.00035616,7]
[403858145,1769604648607,-500.0,0.00035616,7]
[403858146,1769604648616,-500.0,0.00035616,7]
[403858147,1769604648625,-500.0,0.00035616,7]
[403858148,1769604648635,-500.0,0.00035616,7]
[403858149,1769604648644,-163.0,0.0003575,11]
[403858150,1769604648654,-4840.7,0.00036093,7]
[403858151,1769604648663,-306.48,0.000365,14]
[403858152,1769604648672,-190.63915891,0.00036849,30]
[403858153,1769604648682,-125357.19946879,0.00036888,60]
[403858154,1769604648691,-2000.0,0.00036986,77]
[403858155,1769604648701,-500.0,0.00036986,5]
[403858156,1769604648710,-1267.84,0.00037,2]
[403858157,1769604648720,-837.0,0.00037074,11]
[403858158,1769604648729,-866.78,0.000372,30]